fUST/lending_fUST_20250210
["ID","MTS","AMOUNT","RATE_DAILY","PERIOD"]
[352584348,1739179840687,-500.0,0.00011095,2]
[352584351,1739179840697,-500.0,0.00011095,2]
[352584353,1739179840706,-500.0,0.00011095,2]
[352584355,1739179840715,-500.0,0.00011095,2]
[352584356,1739179840724,-500.0,0.00011095,2]
[352584358,1739179840733,-500.0,0.00011095,2]
[352584360,1739179840742,-500.0,0.00011095,2]
[352584362,1739179840752,-981.58,0.00011095,2]
[352584364,1739179840761,-500.0,0.00011095,2]
[352584366,1739179840770,-518.6,0.00011095,2]
[352584368,1739179840780,-500.0,0.00011095,2]
[352584370,1739179840790,-500.0,0.00011095,2]
[352584372,1739179840799,-500.0,0.00011095,2]
[352584375,1739179840809,-500.0,0.00011095,2]
[352584377,1739179840818,-500.0,0.00011095,2]
[352584379,1739179840827,-500.0,0.00011095,2]
[352584381,1739179840837,-500.0,0.00011095,2]
[352584383,1739179840846,-500.0,0.00011095,2]
[352584385,1739179840856,-401.98145756,0.00011095,2]
[352584387,1739179840865,-1026.15,0.00011095,2]
[352584389,1739179840874,-645.11,0.00011095,2]
[352584391,1739179840883,-500.0,0.00011095,2]
[352584393,1739179840893,-500.0,0.00011095,2]
[352584395,1739179840901,-500.0,0.00011095,2]
[352584397,1739179840910,-500.0,0.00011095,2]
[352584398,1739179840919,-500.0,0.00011095,2]
[352584401,1739179840928,-500.0,0.00011095,2]
[352584403,1739179840937,-500.0,0.00011095,2]
[352584404,1739179840946,-500.0,0.00011095,2]
[352584407,1739179840956,-5256.84,0.00011095,2]
[352584408,1739179840965,-1199.52,0.00011095,2]
[352584410,1739179840974,-500.0,0.00011095,2]
[352584412,1739179840983,-526.6,0.00011095,2]
[352584415,1739179840993,-1283.19,0.00011095,2]
[352584416,1739179841002,-500.0,0.00011095,2]
[352584418,1739179841012,-500.0,0.00011095,2]
[352584420,1739179841022,-500.0,0.00011095,2]
[352584422,1739179841031,-199.92,0.00011095,2]
[352584424,1739179841040,-500.0,0.00011095,2]
[352584426,1739179841049,-500.0,0.00011095,2]
[352584428,1739179841058,-500.0,0.00011232,2]
[352584430,1739179841067,-500.0,0.00011232,2]
[352584432,1739179841076,-500.0,0.00011232,2]
[352584434,1739179841085,-500.0,0.00011232,2]
[352584436,1739179841095,-327.31765265,0.00011232,2]
[352584438,1739179841104,-500.0,0.00011232,2]
[352584440,1739179841113,-500.0,0.00011232,2]
[352584442,1739179841122,-500.0,0.00011232,2]
[352584444,1739179841132,-500.0,0.00011232,2]
[352584446,1739179841141,-500.0,0.00011232,2]
[352584448,1739179841150,-500.0,0.00011232,2]
[352584450,1739179841160,-510.10829942,0.00011232,2]
[352584452,1739179841169,-500.0,0.00011232,2]
[352584454,1739179841178,-500.0,0.00011232,2]
[352584456,1739179841188,-500.0,0.00011232,2]
[352584458,1739179841197,-500.0,0.00011232,2]
[352584460,1739179841207,-500.0,0.00011232,2]
[352584462,1739179841216,-500.0,0.00011232,2]
[352584464,1739179841225,-500.0,0.00011232,2]
[352584466,1739179841235,-500.0,0.00011232,2]
[352584468,1739179841246,-500.0,0.00011232,2]
[352584470,1739179841255,-500.0,0.00011232,2]
[352584472,1739179841265,-500.0,0.00011232,2]
[352584474,1739179841277,-500.0,0.00011232,2]
[352584476,1739179841290,-500.0,0.00011232,2]
[352584478,1739179841300,-500.0,0.00011232,2]
[352584480,1739179841309,-500.0,0.00011232,2]
[352584481,1739179841320,-545.98,0.00011232,2]
[352584484,1739179841330,-500.0,0.00011232,2]
[352584486,1739179841339,-500.0,0.00011232,2]
[352584488,1739179841348,-500.0,0.00011232,2]
[352584490,1739179841358,-500.0,0.00011232,2]
[352584491,1739179841372,-551.98,0.00011232,2]
[352584494,1739179841381,-500.0,0.00011232,2]
[352584496,1739179841390,-500.0,0.00011232,2]
[352584498,1739179841400,-500.0,0.00011232,2]
[352584500,1739179841409,-3850.31,0.00011232,2]
[352584502,1739179841418,-652.13,0.00011232,2]
[352584504,1739179841427,-1957.47,0.00011232,2]
[352584506,1739179841437,-500.0,0.00011232,2]
[352584508,1739179841446,-500.0,0.00011232,2]
[352584510,1739179841455,-500.0,0.00011232,2]
[352584512,1739179841464,-1459.01,0.00011232,2]
[352584514,1739179841473,-500.0,0.00011232,2]
[352584516,1739179841483,-500.0,0.00011232,2]
[352584517,1739179841491,-513.87,0.00011232,2]
[352584519,1739179841502,-500.0,0.00011232,2]
[352584521,1739179841511,-500.0,0.00011232,2]
[352584524,1739179841520,-500.0,0.00011232,2]
[352584525,1739179841530,-500.0,0.00011232,2]
[352584527,1739179841539,-14216.64,0.00011232,2]
[352584529,1739179841548,-969.27,0.00011232,2]
[352584531,1739179841558,-706.38,0.00011232,2]
[352584533,1739179841567,-1728.35,0.00011232,2]
[352584535,1739179841577,-500.0,0.00011232,2]
[352584537,1739179841586,-500.0,0.00011232,2]
[352584539,1739179841595,-500.0,0.00011232,2]
[352584541,1739179841604,-539.9,0.00011232,2]
[352584543,1739179841614,-500.0,0.00011232,2]
[352584546,1739179841623,-500.0,0.00011232,2]
[352584548,1739179841632,-254.66862441,0.00011232,2]
[352584549,1739179841641,-500.0,0.00011232,2]
[352584551,1739179841651,-1035.44,0.00011232,2]
[352584553,1739179841660,-500.0,0.00011232,2]
[352584555,1739179841669,-500.0,0.00011232,2]
[352584566,1739179841763,-500.0,0.00011232,2]
[352584568,1739179841775,-500.0,0.00011232,2]
[352584569,1739179841785,-500.0,0.00011232,2]
[352584570,1739179841794,-500.0,0.00011232,2]
[352584571,1739179841805,-500.0,0.00011232,2]
[352584572,1739179841814,-981.58,0.00011232,2]
[352584573,1739179841824,-500.0,0.00011232,2]
[352584574,1739179841834,-518.6,0.00011232,2]
[352584575,1739179841844,-500.0,0.00011232,2]
[352584576,1739179841853,-500.0,0.00011232,2]
[352584577,1739179841864,-500.0,0.00011232,2]
[352584578,1739179841873,-500.0,0.00011232,2]
[352584579,1739179841883,-500.0,0.00011232,2]
[352584580,1739179841892,-500.0,0.00011232,2]
[352584581,1739179841902,-1026.15,0.00011232,2]
[352584583,1739179841911,-645.11,0.00011232,2]
[352584585,1739179841921,-500.0,0.00011232,2]
[352584587,1739179841930,-500.0,0.00011232,2]
[352584589,1739179841939,-500.0,0.00011232,2]
[352584591,1739179841949,-500.0,0.00011232,2]
[352584593,1739179841958,-500.0,0.00011232,2]
[352584595,1739179841967,-5256.84,0.00011232,2]
[352584597,1739179841977,-1199.52,0.00011232,2]
[352584599,1739179841986,-500.0,0.00011232,2]
[352584601,1739179841995,-526.6,0.00011232,2]
[352584603,1739179842005,-1283.19,0.00011232,2]
[352584605,1739179842014,-500.0,0.00011232,2]
[352584607,1739179842023,-500.0,0.00011232,2]
[352584609,1739179842033,-500.0,0.00011232,2]
[352584611,1739179842042,-500.0,0.00011232,2]
[352584613,1739179842051,-500.0,0.00011351,2]
[352584615,1739179842061,-500.0,0.00011369,2]
[352584617,1739179842070,-500.0,0.00011369,2]
[352584619,1739179842079,-500.0,0.00011369,2]
[352584621,1739179842088,-500.0,0.00011369,2]
[352584623,1739179842097,-192.54,0.00011369,2]
[352584625,1739179842106,-500.0,0.00011369,2]
[352584627,1739179842116,-500.0,0.00011369,2]
[352584629,1739179842125,-500.0,0.00011369,2]
[352584631,1739179842134,-500.0,0.00011369,2]
[352584633,1739179842143,-500.0,0.00011369,2]
[352584635,1739179842152,-500.0,0.00011369,2]
[352584637,1739179842161,-500.0,0.00011369,2]
[352584639,1739179842170,-500.0,0.00011369,2]
[352584641,1739179842179,-500.0,0.00011369,2]
[352584642,1739179842189,-500.0,0.00011369,2]
[352584644,1739179842198,-578.4468197,0.00011369,2]
[352584646,1739179842207,-500.0,0.00011369,2]
[352584649,1739179842218,-500.0,0.00011369,2]
[352584651,1739179842227,-500.0,0.00011369,2]
[352584653,1739179842237,-500.0,0.00011369,2]
[352584654,1739179842247,-500.0,0.00011369,2]
[352584657,1739179842257,-500.0,0.00011369,2]
[352584658,1739179842266,-624.31537494,0.00011369,2]
[352584660,1739179842275,-545.98,0.00011369,2]
[352584662,1739179842284,-500.0,0.00011369,2]
[352584664,1739179842294,-500.0,0.00011369,2]
[352584666,1739179842303,-500.0,0.00011369,2]
[352584668,1739179842313,-3850.31,0.00011369,2]
[352584671,1739179842323,-652.13,0.00011369,2]
[352584673,1739179842332,-1957.47,0.00011369,2]
[352584676,1739179842342,-500.0,0.00011369,2]
[352584678,1739179842351,-500.0,0.00011369,2]
[352584680,1739179842363,-500.0,0.00011369,2]
[352584682,1739179842374,-1459.01,0.00011369,2]
[352584685,1739179842385,-290.86,0.00011369,2]
[352584688,1739179842396,-500.0,0.00011369,2]
[352584691,1739179842407,-513.87,0.00011369,2]
[352584694,1739179842418,-500.0,0.00011369,2]
[352584696,1739179842428,-500.0,0.00011369,2]
[352584698,1739179842439,-500.0,0.00011369,2]
[352584700,1739179842450,-500.0,0.00011369,2]
[352584702,1739179842462,-14216.64,0.00011369,2]
[352584704,1739179842472,-969.27,0.00011369,2]
[352584706,1739179842481,-706.38,0.00011369,2]
[352584708,1739179842491,-1728.35,0.00011369,2]
[352584711,1739179842507,-500.0,0.00011369,2]
[352584714,1739179842517,-500.0,0.00011369,2]
[352584716,1739179842527,-539.9,0.00011369,2]
[352584718,1739179842536,-500.0,0.00011369,2]
[352584720,1739179842546,-500.0,0.00011369,2]
[352584722,1739179842555,-1035.44,0.00011369,2]
[352584724,1739179842564,-500.0,0.00011369,2]
[352584726,1739179842574,-500.0,0.00011369,2]
[352584728,1739179842584,-500.0,0.00011369,2]
[352584730,1739179842593,-500.0,0.00011369,2]
[352584731,1739179842601,-500.0,0.00011369,2]
[352584733,1739179842610,-500.0,0.00011369,2]
[352584735,1739179842619,-500.0,0.00011369,2]
[352584737,1739179842628,-981.58,0.00011369,2]
[352584739,1739179842638,-500.0,0.00011369,2]
[352584741,1739179842648,-518.6,0.00011369,2]
[352584743,1739179842657,-500.0,0.00011369,2]
[352584745,1739179842667,-500.0,0.00011369,2]
[352584747,1739179842676,-500.0,0.00011369,2]
[352584749,1739179842685,-500.0,0.00011369,2]
[352584751,1739179842695,-1026.15,0.00011369,2]
[352584753,1739179842704,-645.11,0.00011369,2]
[352584755,1739179842713,-500.0,0.00011369,2]
[352584757,1739179842722,-500.0,0.00011369,2]
[352584759,1739179842731,-500.0,0.00011369,2]
[352584761,1739179842741,-500.0,0.00011369,2]
[352584763,1739179842753,-500.0,0.00011369,2]
[352584765,1739179842762,-5256.84,0.00011369,2]
[352584767,1739179842772,-1199.52,0.00011369,2]
[352584769,1739179842781,-510.08,0.00011369,2]
[352584771,1739179842790,-526.6,0.00011369,2]
[352584773,1739179842800,-1283.19,0.00011369,2]
[352584775,1739179842809,-500.0,0.00011369,2]
[352584777,1739179842818,-500.0,0.00011369,2]
[352584779,1739179842828,-500.0,0.00011369,2]
[352584781,1739179842837,-360.60598572,0.00011369,2]
[352584783,1739179842846,-500.0,0.00011369,2]
[352584785,1739179842856,-500.0,0.00011506,2]
[352584787,1739179842865,-500.0,0.00011506,2]
[352584790,1739179842876,-500.0,0.00011506,2]
[352584791,1739179842886,-500.0,0.00011506,2]
[352584793,1739179842895,-500.0,0.00011506,2]
[352584795,1739179842904,-500.0,0.00011506,2]
[352584797,1739179842913,-584.95,0.00011506,2]
[352584799,1739179842923,-500.0,0.00011506,2]
[352584801,1739179842932,-500.0,0.00011506,2]
[352584804,1739179842941,-500.0,0.00011506,2]
[352584806,1739179842950,-359.25,0.00011506,2]
[352584809,1739179842959,-500.0,0.00011506,2]
[352584812,1739179842968,-500.0,0.00011506,2]
[352584815,1739179842977,-571.37577899,0.00011506,2]
[352584817,1739179842987,-500.0,0.00011506,2]
[352584819,1739179842997,-500.0,0.00011506,2]
[352584821,1739179843006,-500.0,0.00011506,2]
[352584823,1739179843015,-500.0,0.00011506,2]
[352584825,1739179843024,-500.0,0.00011506,2]
[352584827,1739179843034,-545.98,0.00011506,2]
[352584829,1739179843043,-500.0,0.00011506,2]
[352584831,1739179843053,-500.0,0.00011506,2]
[352584833,1739179843062,-3850.31,0.00011506,2]
[352584835,1739179843071,-652.13,0.00011506,2]
[352584837,1739179843081,-1957.47,0.00011506,2]
[352584839,1739179843090,-500.0,0.00011506,2]
[352584841,1739179843100,-500.0,0.00011506,2]
[352584843,1739179843109,-500.0,0.00011506,2]
[352584845,1739179843119,-1459.01,0.00011506,2]
[352584847,1739179843131,-500.0,0.00011506,2]
[352584849,1739179843140,-513.87,0.00011506,2]
[352584851,1739179843149,-500.0,0.00011506,2]
[352584853,1739179843159,-500.0,0.00011506,2]
[352584855,1739179843168,-500.0,0.00011506,2]
[352584857,1739179843178,-14216.64,0.00011506,2]
[352584859,1739179843187,-969.27,0.00011506,2]
[352584861,1739179843197,-706.38,0.00011506,2]
[352584863,1739179843206,-1728.35,0.00011506,2]
[352584865,1739179843215,-500.0,0.00011506,2]
[352584867,1739179843225,-500.0,0.00011506,2]
[352584869,1739179843235,-539.9,0.00011506,2]
[352584871,1739179843244,-647.31,0.00011506,2]
[352584873,1739179843255,-500.0,0.00011506,2]
[352584875,1739179843265,-1035.44,0.00011506,2]
[352584877,1739179843275,-500.0,0.00011506,2]
[352584879,1739179843284,-500.0,0.00011506,2]
[352584881,1739179843293,-500.0,0.00011506,2]
[352584883,1739179843303,-500.0,0.00011506,2]
[352584885,1739179843312,-500.0,0.00011506,2]
[352584886,1739179843322,-981.58,0.00011506,2]
[352584888,1739179843331,-500.0,0.00011506,2]
[352584890,1739179843340,-518.6,0.00011506,2]
[352584892,1739179843349,-500.0,0.00011506,2]
[352584894,1739179843360,-1026.15,0.00011506,2]
[352584896,1739179843372,-645.11,0.00011506,2]
[352584898,1739179843381,-500.0,0.00011506,2]
[352584900,1739179843391,-500.0,0.00011506,2]
[352584902,1739179843401,-500.0,0.00011506,2]
[352584904,1739179843410,-500.0,0.00011506,2]
[352584906,1739179843419,-5256.84,0.00011506,2]
[352584908,1739179843429,-1199.52,0.00011506,2]
[352584910,1739179843438,-526.6,0.00011506,2]
[352584912,1739179843448,-1283.19,0.00011506,2]
[352584915,1739179843458,-597.3,0.00011506,2]
[352584917,1739179843467,-500.0,0.00011506,2]
[352584918,1739179843476,-500.0,0.00011506,2]
[352584920,1739179843485,-500.56880759,0.0001155,2]
[352584922,1739179843494,-500.0,0.00011567,2]
[352584924,1739179843506,-5619.26047126,0.00011614,2]
[352584926,1739179843515,-500.0,0.00011643,2]
[352584928,1739179843524,-500.0,0.00011643,2]
[352584930,1739179843533,-500.0,0.00011643,2]
[352584932,1739179843542,-500.0,0.00011643,2]
[352584934,1739179843552,-500.0,0.00011643,2]
[352584936,1739179843561,-500.0,0.00011643,2]
[352584938,1739179843573,-500.0,0.00011643,2]
[352584940,1739179843583,-500.0,0.00011643,2]
[352584942,1739179843592,-510.23943482,0.00011643,2]
[352584944,1739179843602,-500.0,0.00011643,2]
[352584946,1739179843610,-500.0,0.00011643,2]
[352584948,1739179843619,-500.0,0.00011643,2]
[352584950,1739179843628,-500.0,0.00011643,2]
[352584952,1739179843638,-545.98,0.00011643,2]
[352584954,1739179843647,-500.0,0.00011643,2]
[352584956,1739179843656,-500.0,0.00011643,2]
[352584958,1739179843666,-3850.31,0.00011643,2]
[352584960,1739179843675,-652.13,0.00011643,2]
[352584962,1739179843684,-1957.47,0.00011643,2]
[352584964,1739179843693,-500.0,0.00011643,2]
[352584966,1739179843702,-500.0,0.00011643,2]
[352584968,1739179843711,-500.0,0.00011643,2]
[352584970,1739179843721,-1459.01,0.00011643,2]
[352584972,1739179843730,-500.0,0.00011643,2]
[352584974,1739179843739,-513.87,0.00011643,2]
[352584976,1739179843749,-500.0,0.00011643,2]
[352584978,1739179843758,-500.0,0.00011643,2]
[352584980,1739179843768,-500.0,0.00011643,2]
[352584982,1739179843777,-14216.64,0.00011643,2]
[352584984,1739179843786,-969.27,0.00011643,2]
[352584986,1739179843794,-706.38,0.00011643,2]
[352584988,1739179843803,-1728.35,0.00011643,2]
[352584990,1739179843813,-500.0,0.00011643,2]
[352584992,1739179843822,-500.0,0.00011643,2]
[352584994,1739179843831,-539.9,0.00011643,2]
[352584996,1739179843840,-500.0,0.00011643,2]
[352584998,1739179843849,-1035.44,0.00011643,2]
[352585000,1739179843858,-500.0,0.00011643,2]
[352585002,1739179843867,-500.0,0.00011643,2]
[352585004,1739179843876,-500.0,0.00011643,2]
[352585006,1739179843885,-500.0,0.00011643,2]
[352585008,1739179843894,-500.0,0.00011643,2]
[352585010,1739179843903,-981.58,0.00011643,2]
[352585012,1739179843912,-500.0,0.00011643,2]
[352585014,1739179843922,-518.6,0.00011643,2]
[352585016,1739179843931,-500.0,0.00011643,2]
[352585018,1739179843940,-1026.15,0.00011643,2]
[352585020,1739179843949,-645.11,0.00011643,2]
[352585022,1739179843959,-500.0,0.00011643,2]
[352585033,1739179844052,-500.0,0.00011643,2]
[352585035,1739179844061,-500.0,0.00011643,2]
[352585037,1739179844071,-500.0,0.00011643,2]
[352585039,1739179844080,-5256.84,0.00011643,2]
[352585041,1739179844090,-1199.52,0.00011643,2]
[352585043,1739179844099,-526.6,0.00011643,2]
[352585045,1739179844108,-1283.19,0.00011643,2]
[352585047,1739179844118,-500.0,0.00011643,2]
[352585049,1739179844128,-408.02,0.00011643,2]
[352585051,1739179844138,-1000.0,0.00011643,2]
[352585053,1739179844147,-500.0,0.0001178,2]
[352585055,1739179844157,-601.07,0.0001178,2]
[352585057,1739179844166,-500.0,0.0001178,2]
[352585059,1739179844175,-500.0,0.0001178,2]
[352585061,1739179844185,-500.0,0.0001178,2]
[352585063,1739179844194,-500.0,0.0001178,2]
[352585065,1739179844203,-500.0,0.0001178,2]
[352585067,1739179844214,-500.0,0.0001178,2]
[352585069,1739179844223,-500.0,0.0001178,2]
[352585070,1739179844233,-500.0,0.0001178,2]
[352585071,1739179844243,-500.0,0.0001178,2]
[352585072,1739179844258,-545.98,0.0001178,2]
[352585074,1739179844268,-492.16,0.0001178,2]
[352585076,1739179844278,-256.76,0.0001178,2]
[352585078,1739179844288,-3850.31,0.0001178,2]
[352585080,1739179844298,-652.13,0.0001178,2]
[352585082,1739179844307,-1957.47,0.0001178,2]
[352585084,1739179844317,-500.0,0.0001178,2]
[352585086,1739179844327,-500.0,0.0001178,2]
[352585088,1739179844336,-500.0,0.0001178,2]
[352585090,1739179844345,-1459.01,0.0001178,2]
[352585092,1739179844355,-500.0,0.0001178,2]
[352585094,1739179844367,-513.87,0.0001178,2]
[352585096,1739179844376,-422.03117771,0.0001178,2]
[352585098,1739179844385,-500.0,0.0001178,2]
[352585100,1739179844395,-500.0,0.0001178,2]
[352585102,1739179844405,-14216.64,0.0001178,2]
[352585104,1739179844415,-969.27,0.0001178,2]
[352585105,1739179844424,-706.38,0.0001178,2]
[352585106,1739179844433,-1728.35,0.0001178,2]
[352585107,1739179844443,-500.0,0.0001178,2]
[352585108,1739179844452,-500.0,0.0001178,2]
[352585109,1739179844461,-539.9,0.0001178,2]
[352585110,1739179844470,-500.0,0.0001178,2]
[352585111,1739179844480,-1035.44,0.0001178,2]
[352585112,1739179844489,-500.0,0.0001178,2]
[352585113,1739179844498,-500.0,0.0001178,2]
[352585114,1739179844510,-500.0,0.0001178,2]
[352585115,1739179844519,-500.0,0.0001178,2]
[352585116,1739179844528,-500.0,0.0001178,2]
[352585117,1739179844537,-981.58,0.0001178,2]
[352585118,1739179844547,-500.0,0.0001178,2]
[352585119,1739179844557,-518.6,0.0001178,2]
[352585120,1739179844566,-500.0,0.0001178,2]
[352585121,1739179844576,-1026.15,0.0001178,2]
[352585123,1739179844585,-645.11,0.0001178,2]
[352585124,1739179844595,-500.0,0.0001178,2]
[352585126,1739179844604,-500.0,0.0001178,2]
[352585128,1739179844614,-500.0,0.0001178,2]
[352585130,1739179844623,-500.0,0.0001178,2]
[352585132,1739179844633,-5256.84,0.0001178,2]
[352585133,1739179844642,-1199.52,0.0001178,2]
[352585135,1739179844651,-526.6,0.0001178,2]
[352585137,1739179844660,-1283.19,0.0001178,2]
[352585138,1739179844669,-295.2,0.0001178,2]
[352585139,1739179844679,-500.0,0.00011899,2]
[352585140,1739179844688,-500.0,0.00011917,2]
[352585141,1739179844697,-500.0,0.00011917,2]
[352585142,1739179844707,-500.0,0.00011917,2]
[352585143,1739179844716,-500.0,0.00011917,2]
[352585144,1739179844725,-500.0,0.00011917,2]
[352585145,1739179844735,-500.0,0.00011917,2]
[352585146,1739179844744,-281.80556329,0.00011917,2]
[352585147,1739179844755,-500.0,0.00011917,2]
[352585148,1739179844764,-500.0,0.00011917,2]
[352585149,1739179844773,-500.0,0.00011917,2]
[352585150,1739179844782,-545.98,0.00011917,2]
[352585151,1739179844792,-3850.31,0.00011917,2]
[352585152,1739179844802,-652.13,0.00011917,2]
[352585153,1739179844811,-1957.47,0.00011917,2]
[352585154,1739179844821,-500.0,0.00011917,2]
[352585155,1739179844830,-500.0,0.00011917,2]
[352585156,1739179844840,-500.0,0.00011917,2]
[352585157,1739179844850,-1459.01,0.00011917,2]
[352585158,1739179844859,-500.0,0.00011917,2]
[352585159,1739179844868,-513.87,0.00011917,2]
[352585160,1739179844878,-500.0,0.00011917,2]
[352585161,1739179844887,-500.0,0.00011917,2]
[352585162,1739179844897,-14216.64,0.00011917,2]
[352585163,1739179844907,-969.27,0.00011917,2]
[352585164,1739179844917,-706.38,0.00011917,2]
[352585165,1739179844927,-1728.35,0.00011917,2]
[352585166,1739179844936,-500.0,0.00011917,2]
[352585167,1739179844947,-500.0,0.00011917,2]
[352585168,1739179844956,-539.9,0.00011917,2]
[352585169,1739179844966,-500.0,0.00011917,2]
[352585170,1739179844976,-1035.44,0.00011917,2]
[352585171,1739179844986,-500.0,0.00011917,2]
[352585172,1739179844995,-500.0,0.00011917,2]
[352585173,1739179845006,-500.0,0.00011917,2]
[352585174,1739179845016,-500.0,0.00011917,2]
[352585175,1739179845025,-500.0,0.00011917,2]
[352585176,1739179845035,-981.58,0.00011917,2]
[352585177,1739179845044,-500.0,0.00011917,2]
[352585178,1739179845054,-518.6,0.00011917,2]
[352585179,1739179845063,-500.0,0.00011917,2]
[352585180,1739179845073,-1026.15,0.00011917,2]
[352585181,1739179845082,-645.11,0.00011917,2]
[352585182,1739179845092,-500.0,0.00011917,2]
[352585183,1739179845102,-500.0,0.00011917,2]
[352585184,1739179845112,-500.0,0.00011917,2]
[352585185,1739179845121,-500.0,0.00011917,2]
[352585186,1739179845132,-5256.84,0.00011917,2]
[352585187,1739179845141,-1199.52,0.00011917,2]
[352585188,1739179845152,-526.6,0.00011917,2]
[352585189,1739179845162,-1283.19,0.00011917,2]
[352585190,1739179845172,-514.10998487,0.00012054,2]
[352585191,1739179845181,-500.0,0.00012054,2]
[352585192,1739179845191,-500.0,0.00012054,2]
[352585193,1739179845201,-500.0,0.00012054,2]
[352585195,1739179845210,-500.0,0.00012054,2]
[352585196,1739179845220,-500.0,0.00012054,2]
[352585197,1739179845229,-500.0,0.00012054,2]
[352585198,1739179845240,-500.0,0.00012054,2]
[352585199,1739179845250,-500.0,0.00012054,2]
[352585200,1739179845260,-545.98,0.00012054,2]
[352585201,1739179845270,-3850.31,0.00012054,2]
[352585202,1739179845280,-652.13,0.00012054,2]
[352585203,1739179845289,-1957.47,0.00012054,2]
[352585204,1739179845298,-500.0,0.00012054,2]
[352585205,1739179845308,-500.0,0.00012054,2]
[352585206,1739179845318,-500.0,0.00012054,2]
[352585207,1739179845327,-1459.01,0.00012054,2]
[352585208,1739179845337,-500.0,0.00012054,2]
[352585209,1739179845346,-513.87,0.00012054,2]
[352585210,1739179845355,-500.0,0.00012054,2]
[352585212,1739179845369,-500.0,0.00012054,2]
[352585214,1739179845379,-14216.64,0.00012054,2]
[352585216,1739179845388,-969.27,0.00012054,2]
[352585217,1739179845399,-706.38,0.00012054,2]
[352585219,1739179845409,-1728.35,0.00012054,2]
[352585220,1739179845419,-500.0,0.00012054,2]
[352585221,1739179845428,-500.0,0.00012054,2]
[352585222,1739179845438,-539.9,0.00012054,2]
[352585223,1739179845448,-500.0,0.00012054,2]
[352585224,1739179845457,-1035.44,0.00012054,2]
[352585225,1739179845466,-500.0,0.00012054,2]
[352585226,1739179845475,-500.0,0.00012054,2]
[352585227,1739179845484,-500.0,0.00012054,2]
[352585228,1739179845494,-500.0,0.00012054,2]
[352585229,1739179845505,-500.0,0.00012054,2]
[352585230,1739179845515,-981.58,0.00012054,2]
[352585231,1739179845525,-500.0,0.00012054,2]
[352585232,1739179845534,-518.6,0.00012054,2]
[352585234,1739179845543,-500.0,0.00012054,2]
[352585236,1739179845553,-1026.15,0.00012054,2]
[352585238,1739179845562,-645.11,0.00012054,2]
[352585240,1739179845571,-248.11813587,0.00012054,2]
[352585241,1739179845581,-500.0,0.00012054,2]
[352585242,1739179845590,-500.0,0.00012054,2]
[352585243,1739179845600,-500.0,0.00012054,2]
[352585244,1739179845610,-5256.84,0.00012054,2]
[352585245,1739179845619,-1199.52,0.00012054,2]
[352585246,1739179845628,-526.6,0.00012054,2]